{"text_format":"1","workbook":"xlsx","n_sheets":12,"sheets":["BOISSON","CLUB","DONNEES","FICHE-JOUEUR","Saisie des joueurs","R1","R2","R3","R4","LIBRE","Distances","Heures convocations"],"not_rendered":{"charts":0,"images":3,"macros":1,"external_links":0,"defined_names":13,"comments":0,"pivot_tables":0},"unopened":[],"bounds":{"document_bytes":16777216,"sheet_cells":100000,"rows_first":2000,"rows_last":500,"rows_between":2000,"halvings":0,"cell_chars":16384,"cell_head_chars":4096},"cells_cut":0,"cells_raw":0,"read":"whole","date_system":"1900"}

{"sheet":"BOISSON","index":0,"n_rows":26,"n_cols":6,"rows_kept":26,"cut":false,"hidden":true,"merged":[[0,0,0,5]]}
["BILLARD CLUB"]
["Nom - Prénom","EAU","BOISSONS","REPAS","TOTAL","CLUB"]
[{"$f":"'Saisie des joueurs'!B18","v":0}]
[{"$f":"'Saisie des joueurs'!B19","v":0}]
[{"$f":"'Saisie des joueurs'!B20","v":0}]
[{"$f":"'Saisie des joueurs'!B21","v":0}]
[{"$f":"'Saisie des joueurs'!B22","v":0}]
[{"$f":"'Saisie des joueurs'!B23","v":0}]
[{"$f":"'Saisie des joueurs'!B24","v":0}]
[{"$f":"'Saisie des joueurs'!B25","v":0}]
[{"$f":"'Saisie des joueurs'!B26","v":0}]
[{"$f":"'Saisie des joueurs'!B27","v":0}]
[{"$f":"'Saisie des joueurs'!B28","v":0}]
[{"$f":"'Saisie des joueurs'!B29","v":0}]
[{"$f":"'Saisie des joueurs'!B30","v":0}]
[{"$f":"'Saisie des joueurs'!B31","v":0}]
[{"$f":"'Saisie des joueurs'!B32","v":0}]
[{"$f":"'Saisie des joueurs'!B33","v":0}]
[{"$f":"'Saisie des joueurs'!B34","v":0}]
[{"$f":"'Saisie des joueurs'!B35","v":0}]
[{"$f":"'Saisie des joueurs'!B36","v":0}]
[{"$f":"'Saisie des joueurs'!B37","v":0}]
[{"$f":"'Saisie des joueurs'!B38","v":0}]
[{"$f":"'Saisie des joueurs'!B39","v":0}]
[{"$f":"'Saisie des joueurs'!B40","v":0}]
[{"$f":"'Saisie des joueurs'!B41","v":0}]

{"sheet":"CLUB","index":1,"n_rows":20,"n_cols":10,"rows_kept":20,"cut":false,"hidden":true,"merged":[[0,0,0,4]]}
["CLUB AFFILIE LMB\n"]
["CLUB","ADRESSE 1","ADRESSE 2","CODE POSTAL","VILLE",null,null,"TOURNOI L01","R1","CL"]
["19001 – S. S. A. B. D AIX EN PROVENCE","RUE PIERRE DE COUBERTIN",null,13100,"AIX EN PROVENCE",null,null,"TOURNOI L02","R2","NC"]
["19090 – BILLARD AMATEUR ROGNAC","60 BOULEVARD JEAN JAURES",null,13340,"ROGNAC",null,null,"TOURNOI L03","R3"]
["19007 – BILLARD CLUB BERROIS","RUE MARCEL PAGNOL",null,13130,"BERRE L ETANG",null,null,"TOURNOI L04","R4"]
["19098 – BILLARD CLUB LA FARE","36 BIS AVENUE PASTEUR",null,13580,"LA FARE LES OLIVIERS",null,null,"TOURNOI L05"]
["19017 – BILLARD CLUB PHOCEEN","12 rue du docteur ACQUAVIVA",null,13004,"MARSEILLE",null,null,"TOURNOI L06"]
["19012 – SALON BILLARD CLUB","CERCLE DES ARTS","RUE DES FILEUSES DE SOIE",13300,"SALON DE PROVENCE",null,null,"TOURNOI L07"]
["19050 – BILLARD CLUB SAUSSETOIS","PARC MUNICIPAL DES LOISIRS","31 AVENUE DE LA COTE BLEUE",13960,"SAUSSET LES PINS",null,null,"TOURNOI L08"]
["19025 – BILLARD CLUB SISTERONNAIS","73 AVENUE DE LA DURANCE","SALLE OMNISPORT DANIEL MAFFREN",4200,"SISTERON",null,null,"TOURNOI L09"]
["19009 – CLUB BILLARD ISTREEN","HALLE POLYVALENTE PLACE RAOUX","ALLEE DES ECHOPPES",13800,"ISTRES",null,null,"TOURNOI L10"]
["19002 – SPORT AMAT.DE BILLARD MARSEILLAIS","26 RUE PAVILLON",null,13001,"MARSEILLE",null,null,"TOURNOI L11"]
["19006 – BILLARD CLUB CARPENTRASSIEN","264 Bd Albin DURAND",null,84200,"CARPENTRAS",null,null,"TOURNOI L12"]
["19014 – BILLARD CLUB AVIGNONNAIS","12 rue Bonaparte",null,84100,"AVIGNON"]
["19027 – ACADEMIE DE BILLARD DE BOLLENE","chemin du souvenir",null,84500,"BOLLENE"]
["19021 – BILLARD CLUB DE CAVAILLONNAIS","97 cours Victor Hugo",null,84300,"CAVAILLON"]
["19016 – BILLARD CLUB ORANGEOIS","route de Caderousse",null,84100,"ORANGE"]
[]
[]
[null,null,null,null,null,")"]

{"sheet":"DONNEES","index":2,"n_rows":271,"n_cols":6,"rows_kept":271,"cut":false,"hidden":true,"merged":[[0,0,0,5],[1,0,1,5]]}
[]
["Données mises à jour le 26/10/2025"]
["NC-CL","NOM","LICENCE","CAT","MG","CLUB"]
["CL","ALESSI JEAN PIERRE","149448 T","R3",1.38,"19023 – BILLARD CLUB GARDEEN"]
["CL","ALIBERT BRUNO","151459 E","R2",2.4900000000000002,"19056 – BILLARD CLUB DE NICE"]
["CL","ALLIGIER GERARD","157036 R","R3",1.46,"19019 – BILLARD CLUB DE LA BAIE"]
["CL","ALVAREZ PHILIPPE","159130 S","R1",5.12,"19056 – BILLARD CLUB DE NICE"]
["CL","ALVISET GUY","152035 F","R3",1.06,"19050 – BILLARD CLUB SAUSSETOIS"]
["NC","AMANS HERVE","177854 V","R4",0.43,"19009 – CLUB BILLARD ISTREEN"]
["CL","AMOUROUX LUC","155531 F","R4",1.05,"19023 – BILLARD CLUB GARDEEN"]
["CL","ANDRY JEAN FRANCOIS","021818 E","R3",1.96,"19090 – BILLARD CLUB ROGNAC"]
["CL","ANNESTAY JACQUES","021820 G","R3",2.08,"19025 – BILLARD CLUB SISTERONNAIS"]
["CL","ANTONIN ALAIN","021821 H","N3",6.94,"19021 – BILLARD CLUB CAVAILLONNAIS"]
["CL","ARMENGAU PHILIPPE","161785 D","R4",0.79,"19056 – BILLARD CLUB DE NICE"]
["CL","ARNOUX LAURENT","180272 Y","R3",1.34,"19058 – ACADEMIE DE BILLARD DE BARBOSSI MANDELIEU"]
["CL","AUBERT ROUECHE LYDIA","148204 R","R2",2.73,"19106 – BILLARD CLUB VINONNAIS"]
["CL","BAILLON JEAN","115304 U","R4",0.89,"19058 – ACADEMIE DE BILLARD DE BARBOSSI MANDELIEU"]
["CL","BALESTRI MAURICE","153554 G","R4",0.93,"19058 – ACADEMIE DE BILLARD DE BARBOSSI MANDELIEU"]
["CL","BALLIGAND SERGE","023184 S","R1",4.2300000000000004,"19059 – BILLARD CLUB ROQUEBRUNOIS"]
["CL","BARBANNEAU FREDERIC","109917 P","R2",3.13,"19012 – SALON BILLARD CLUB"]
["CL","BARDET JEAN PIERRE","018535 X","R2",3.29,"19023 – BILLARD CLUB GARDEEN"]
["CL","BARRALLON JEAN PAUL","122300 W","R3",1.86,"19023 – BILLARD CLUB GARDEEN"]
["CL","BASSOUL JEAN MARIE","103568 K","R2",2.8,"19006 – BILLARD CLUB CARPENTRASSIEN"]
["CL","BELTRITTI JEAN YVES","132789 H","R3",1.47,"19106 – BILLARD CLUB VINONNAIS"]
["CL","BENHAMOU ALEXIS","160341 J","R2",3.07,"19001 – S. S. A. B. D AIX EN PROVENCE"]
["CL","BENIER PATRICK","159238 K","R3",1.37,"19023 – BILLARD CLUB GARDEEN"]
["CL","BENOIT MICHEL","159790 K","R4",1.2,"19027 – ACADEMIE DE BILLARD DE BOLLENE"]
["CL","BERNAT JEAN PIERRE","125945 B","R3",1.82,"19023 – BILLARD CLUB GARDEEN"]
["CL","BETTONI GILLES","180334 Q","R4",0.92,"19058 – ACADEMIE DE BILLARD DE BARBOSSI MANDELIEU"]
["CL","BIARD ANDRE","159202 W","R4",0.93,"19009 – CLUB BILLARD ISTREEN"]
["CL","BIDDAU FRANCOIS","125917 Z","R2",3.26,"19009 – CLUB BILLARD ISTREEN"]
["CL","BILDIK MEHMET","141828 Y","R1",4.6100000000000003,"19006 – BILLARD CLUB CARPENTRASSIEN"]
["CL","BIOT ELODIE","183516 Z","R4",0.35,"19058 – ACADEMIE DE BILLARD DE BARBOSSI MANDELIEU"]
["CL","BLANC SANTELLI ERIC","179744 Z","R4",0.6,"19009 – CLUB BILLARD ISTREEN"]
["CL","BONELLO LUCIEN","021894 C","R3",1.54,"19090 – BILLARD CLUB ROGNAC"]
["CL","BONNEMAISON DENIS","150422 C","R4",0.94,"19009 – CLUB BILLARD ISTREEN"]
["CL","BONTEMPS PAUL","187537 V","R4",1.21,"19001 – S. S. A. B. D AIX EN PROVENCE"]
["CL","BORDES BERNARD","149287 T","R2",3.06,"19061 – ACAD.BILLARD ST RAPHAEL"]
["CL","BORDES CATHERINE","149288 V","R4",0.75,"19061 – ACAD.BILLARD ST RAPHAEL"]
["CL","BOSSOT JEAN","160000 N","R3",1.59,"19027 – ACADEMIE DE BILLARD DE BOLLENE"]
["CL","BOULANDET ALAIN","012645 J","R3",1.4,"19055 – ACADEMIE DE BILLARD DE MENTON"]
["CL","BOULANT CLAUDE","155529 D","R3",1.91,"19019 – BILLARD CLUB DE LA BAIE"]
["CL","BOVET MICHEL","149613 Y","R3",1.4,"19059 – BILLARD CLUB ROQUEBRUNOIS"]
["CL","BRAYER DENIS","016411 F","R1",4.6100000000000003,"19008 – BRITISH BILLARD CLUB AVIGNON"]
["CL","BREDAT RENE","021918 A","R2",3.28,"19025 – BILLARD CLUB SISTERONNAIS"]
["CL","BREPSON MARTIAL","152345 S","R4",1.1599999999999999,"19058 – ACADEMIE DE BILLARD DE BARBOSSI MANDELIEU"]
["CL","BRESSE JEAN LOUIS","021919 B","R3",1.34,"19016 – BILLARD CLUB ORANGEOIS"]
["CL","BRIAND ALAIN","113104 E","R2",2.82,"19002 – SPORT AMAT.DE BILLARD MARSEILLAIS"]
["CL","BRIOIT DOMINIQUE","021920 C","R3",1.59,"19055 – ACADEMIE DE BILLARD DE MENTON"]
["CL","BRUANT SYLVAIN","114733 V","R3",1.96,"19016 – BILLARD CLUB ORANGEOIS"]
["CL","BRUN ROGER","021929 L","R3",1.84,"19017 – BILLARD CLUB PHOCEEN"]
["CL","BURGANT JEAN MARIE","123684 C","R2",3.58,"19019 – BILLARD CLUB DE LA BAIE"]
["CL","CALDERON LUC","021938 U","R2",3.81,"19009 – CLUB BILLARD ISTREEN"]
["CL","CALDERON MATHYS","173674 B","R4",0.56000000000000005,"19009 – CLUB BILLARD ISTREEN"]
["CL","CAO HUU TUOI","021944 A","R1",6.03,"19098 – BILLARD CLUB LA FARE"]
["CL","CARRION JEAN PHILIPPE","130701 Z","N3",6.09,"19058 – ACADEMIE DE BILLARD DE BARBOSSI MANDELIEU"]
["CL","CESARINI JEAN PAUL","112516 O","R1",4.03,"19106 – BILLARD CLUB VINONNAIS"]
["CL","CESARO JEAN CLAUDE","118684 U","R3",1.87,"19007 – BILLARD CLUB BERROIS"]
["CL","CHABASSIERE DOMINIQUE","173622 V","R2",2.06,"19050 – BILLARD CLUB SAUSSETOIS"]
["CL","CHARBAUT CLAUDE","122456 W","R3",1.67,"19059 – BILLARD CLUB ROQUEBRUNOIS"]
["CL","CHARBIT JEAN MARC","021967 X","R2",2.99,"19056 – BILLARD CLUB DE NICE"]
["CL","CHASTAN GEORGES","012782 Q","R2",3.27,"19006 – BILLARD CLUB CARPENTRASSIEN"]
["CL","CHEMLA ELIE","137581 P","R2",4.91,"19014 – BILLARD CLUB AVIGNONNAIS"]
["CL","CHEURF SELIMANE","187031 V","R4",0.6,"19090 – BILLARD CLUB ROGNAC"]
["CL","CHICARD ALAIN","160332 Z","R4",0.75,"19006 – BILLARD CLUB CARPENTRASSIEN"]
["CL","CHUZEVILLE GILLES","108854 S","R2",2.96,"19025 – BILLARD CLUB SISTERONNAIS"]
["CL","CLAUDON PHILIPPE","148126 G","R4",0.78,"19056 – BILLARD CLUB DE NICE"]
["CL","COHEN RICHARD","148796 K","R3",1.86,"19056 – BILLARD CLUB DE NICE"]
["CL","COLIN PHILIPPE","177991 T","R4",0.73,"19017 – BILLARD CLUB PHOCEEN"]
["CL","COPPIN JEAN MICHEL","021985 P","R3",1.25,"19027 – ACADEMIE DE BILLARD DE BOLLENE"]
["CL","CORBIN LUC","164007 T","R4",0.67,"19023 – BILLARD CLUB GARDEEN"]
["CL","CORTES JEAN LOUIS","187055 W","R3",2.33,"19009 – CLUB BILLARD ISTREEN"]
["CL","COSTAZ ALAIN","148136 S","R4",0.7,"19019 – BILLARD CLUB DE LA BAIE"]
["CL","COSTE PHILIPPE","125938 U","R3",1.29,"19061 – ACAD.BILLARD ST RAPHAEL"]
["CL","COURBOT LUDWIG","016838 Q","R1",5.9,"19001 – S. S. A. B. D AIX EN PROVENCE"]
["CL","COZETTE SYLVIE","168685 D","R4",0.53,"19023 – BILLARD CLUB GARDEEN"]
["CL","DALMASSO EMMANUELLE","177204 N","R4",0.62,"19025 – BILLARD CLUB SISTERONNAIS"]
["CL","DAREAU GERALD","170095 L","R3",1.5,"19055 – ACADEMIE DE BILLARD DE MENTON"]
["CL","DAVID THIERRY","155526 A","R2",2.4700000000000002,"19025 – BILLARD CLUB SISTERONNAIS"]
["CL","DE CAMBOURG HELION","171181 R","R4",0.78,"19014 – BILLARD CLUB AVIGNONNAIS"]
["CL","DE LOOSE FELIX","163348 C","R2",2.95,"19106 – BILLARD CLUB VINONNAIS"]
["CL","DEBRUYNE ANNE","184548 W","R4",0.44,"19106 – BILLARD CLUB VINONNAIS"]
["CL","DEBRUYNE TRISTAN","113220 Q","R3",2.1,"19106 – BILLARD CLUB VINONNAIS"]
["CL","DEBUYSER ANNE","178356 Q","R4",0.78,"19058 – ACADEMIE DE BILLARD DE BARBOSSI MANDELIEU"]
["CL","DELAPORTE YVES","160334 B","R3",1.95,"19006 – BILLARD CLUB CARPENTRASSIEN"]
["CL","DEMARCQ JEAN FRANCOIS","168662 D","R3",1.57,"19025 – BILLARD CLUB SISTERONNAIS"]
["CL","DEMERLIAC BRUNO","159076 J","R4",0.96,"19007 – BILLARD CLUB BERROIS"]
["CL","DESMERO RAYMOND","142358 I","R4",1.04,"19007 – BILLARD CLUB BERROIS"]
["CL","DONABEDIAN DANIEL","142363 N","R3",1.73,"19019 – BILLARD CLUB DE LA BAIE"]
["CL","DOS SANTOS FRANCIS","022039 R","R2",3.6,"19050 – BILLARD CLUB SAUSSETOIS"]
["CL","DOUSSET RENE","174348 J","R4",0.84,"19023 – BILLARD CLUB GARDEEN"]
["CL","DREMEAUX JEAN PIERRE","140803 N","N3",7.79,"19023 – BILLARD CLUB GARDEEN"]
["CL","DRONET CHRYSTEL","134193 H","R3","1,73","19006 – BILLARD CLUB CARPENTRASSIEN"]
["CL","DUBREUIL FRANCK","013022 W","R1",5.87,"19061 – ACAD.BILLARD ST RAPHAEL"]
["CL","DUSSAULE PIERRE","102285 B","R3",2.11,"19027 – ACADEMIE DE BILLARD DE BOLLENE"]
["CL","ELEOUET DANIEL","163467 G","R3",1.85,"19006 – BILLARD CLUB CARPENTRASSIEN"]
["CL","ESTABLIER PIERRE","147622 J","R4",1.17,"19023 – BILLARD CLUB GARDEEN"]
["CL","FERAUD GERARD","022067 T","N3",7.94,"19027 – ACADEMIE DE BILLARD DE BOLLENE"]
["CL","FERHAT ACHOUR","129036 Y","N3",6.75,"19023 – BILLARD CLUB GARDEEN"]
["CL","FERNANDEZ MARC","013111 H","N3",8.0299999999999994,"19007 – BILLARD CLUB BERROIS"]
["CL","FERRE DIDIER","120704 M","R3",1.87,"19058 – ACADEMIE DE BILLARD DE BARBOSSI MANDELIEU"]
["CL","FERRO PHILIPPE","122658 Q","R3",1.95,"19009 – CLUB BILLARD ISTREEN"]
["CL","FLEURIOT PATRICK","173138 T","R4",0.88,"19014 – BILLARD CLUB AVIGNONNAIS"]
["CL","FRANCO ALBERT","022084 K","R2",2.83,"19019 – BILLARD CLUB DE LA BAIE"]
["CL","FROMEYER CORINNE","167290 M","R4",0.96,"19058 – ACADEMIE DE BILLARD DE BARBOSSI MANDELIEU"]
["CL","FURNON ROGER","159060 R","R4",0.98,"19014 – BILLARD CLUB AVIGNONNAIS"]
["CL","GABETTO STEPHANE","103216 W","R2",3.38,"19023 – BILLARD CLUB GARDEEN"]
["CL","GAMEN ANDRE","147288 W","R4",0.62,"19023 – BILLARD CLUB GARDEEN"]
["CL","GANTOIS GILLES","022092 S","R1",6.7,"19016 – BILLARD CLUB ORANGEOIS"]
["CL","GAYRAUD FRANCOISE","143227 T","R4",0.77,"19056 – BILLARD CLUB DE NICE"]
["CL","GELAS BERNARD","163279 C","R4",1.35,"19098 – BILLARD CLUB LA FARE"]
["CL","GERARD THOMAS","167330 F","R4",0.54,"19056 – BILLARD CLUB DE NICE"]
["CL","GHU GERARD","101282 M","R2",2.54,"19016 – BILLARD CLUB ORANGEOIS"]
["CL","GIANNATTASIO LUCIEN","022108 I","R2",2.2799999999999998,"19009 – CLUB BILLARD ISTREEN"]
["CL","GIBARROUX CHRISTOPHE","118661 X","N3",6.51,"19001 – S. S. A. B. D AIX EN PROVENCE"]
["CL","GILLET PHILIPPE","180514 L","R4",0.78,"19058 – ACADEMIE DE BILLARD DE BARBOSSI MANDELIEU"]
["CL","GIRARD DENIS","172734 E","R4",0.5,"19023 – BILLARD CLUB GARDEEN"]
["CL","GIRARD JACQUES","129718 E","R3",1.48,"19058 – ACADEMIE DE BILLARD DE BARBOSSI MANDELIEU"]
["CL","GODARD PASCAL","157852 D","R2",3.44,"19006 – BILLARD CLUB CARPENTRASSIEN"]
["CL","GOUILLON MATTHIEU","174010 R","R4",0.56000000000000005,"19056 – BILLARD CLUB DE NICE"]
["CL","GOUIRAN GEORGES","022129 D","R3",1.33,"19050 – BILLARD CLUB SAUSSETOIS"]
["CL","GOURSEAUD YVES","104054 C","R1",3.63,"19016 – BILLARD CLUB ORANGEOIS"]
["CL","GRAVELLE JULIEN","157851 C","R3",1.31,"19006 – BILLARD CLUB CARPENTRASSIEN"]
["CL","GUERI ROBERT","135013 V","R4",1.1100000000000001,"19027 – ACADEMIE DE BILLARD DE BOLLENE"]
["CL","GUEUG PIERRE","104475 H","R3",2.14,"19056 – BILLARD CLUB DE NICE"]
["CL","GUIBERT JEAN MARIE","022137 L","R4",1.1499999999999999,"19009 – CLUB BILLARD ISTREEN"]
["CL","GUIZELIN PASCAL","154530 S","R3",1.35,"19106 – BILLARD CLUB VINONNAIS"]
["CL","GUYENOT JEAN LOUIS","161784 C","R4",0.79,"19056 – BILLARD CLUB DE NICE"]
["CL","HAHN DANIEL","011966 G","R3",2.2599999999999998,"19017 – BILLARD CLUB PHOCEEN"]
["CL","HAZE PATRICK","137523 J","R3",1.48,"19021 – BILLARD CLUB CAVAILLONNAIS"]
["CL","HERREMAN SERGE","119933 V","R3",1.6,"19023 – BILLARD CLUB GARDEEN"]
["CL","HUGUET PATRICK","172086 A","N3",6.27,"19017 – BILLARD CLUB PHOCEEN"]
["CL","IDJERI GILBERT","172214 P","R2",2.74,"19050 – BILLARD CLUB SAUSSETOIS"]
["CL","ISRAEL ELIE","184059 P","R4",0.75,"19017 – BILLARD CLUB PHOCEEN"]
["CL","IVACHEFF HELENE","184667 A","R4",0.81,"19106 – BILLARD CLUB VINONNAIS"]
["CL","IVACHEFF MICHEL","181239 Z","R3",1.22,"19106 – BILLARD CLUB VINONNAIS"]
["CL","JUNK ROGER","175349 X","R4",0.55000000000000004,"19058 – ACADEMIE DE BILLARD DE BARBOSSI MANDELIEU"]
["CL","LACOSSE JEAN PAUL","109977 X","R1",5.67,"19019 – BILLARD CLUB DE LA BAIE"]
["CL","LACOSTE BRUNO","147195 V","R2",3.11,"19061 – ACAD.BILLARD ST RAPHAEL"]
["CL","LANARI PIERRE","175999 D","R4",1.1200000000000001,"19056 – BILLARD CLUB DE NICE"]
["CL","LANDERECTHE PASCAL","181199 F","R3",2.2999999999999998,"19007 – BILLARD CLUB BERROIS"]
["CL","LANDOIS DOMINIQUE","179135 M","R4",0.55000000000000004,"19055 – ACADEMIE DE BILLARD DE MENTON"]
["CL","LANNURIEN THIERRY","168288 X","R2",3.32,"19023 – BILLARD CLUB GARDEEN"]
["CL","LAUNAY MICHEL","178352 L","R4",0.66,"19058 – ACADEMIE DE BILLARD DE BARBOSSI MANDELIEU"]
["CL","LE FAUCHEUR LAURENT","163278 B","R3",1.93,"19098 – BILLARD CLUB LA FARE"]
["CL","LECOQ ARNAUD","141504 M","R3",2.56,"19012 – SALON BILLARD CLUB"]
["CL","LEDUCQ MORGAN","105373 V","R2",4.8899999999999997,"19014 – BILLARD CLUB AVIGNONNAIS"]
["CL","LEMARTINET ROBERT","110379 J","R3",1.53,"19019 – BILLARD CLUB DE LA BAIE"]
["CL","LEMESLE FABRICE","022205 B","R4",0.83,"19017 – BILLARD CLUB PHOCEEN"]
["CL","LESPRIT CLAUDE","179358 E","R4",0.87,"19019 – BILLARD CLUB DE LA BAIE"]
["CL","LETELLIER ALAIN","176350 K","R3",1.58,"19090 – BILLARD CLUB ROGNAC"]
["CL","LEVISTRE ALAIN","184858 H","R3",2.0099999999999998,"19014 – BILLARD CLUB AVIGNONNAIS"]
["CL","LIEGEOIS DOMINIQUE","022209 F","R2",3.87,"19027 – ACADEMIE DE BILLARD DE BOLLENE"]
["CL","LISI ROGER","146375 V","R4",1.08,"19007 – BILLARD CLUB BERROIS"]
["CL","LLOBELL CLAIRE","170267 Y","R4",0.31,"19017 – BILLARD CLUB PHOCEEN"]
["CL","LUCENET PAUL","162076 V","R2",2.66,"19009 – CLUB BILLARD ISTREEN"]
["CL","LUNEAU JEAN CLAUDE","186880 F","R2",2.68,"19023 – BILLARD CLUB GARDEEN"]
["CL","MAGNIER PIERRE","165843 P","R4",0.77,"19023 – BILLARD CLUB GARDEEN"]
["CL","MALLEVAL GERARD","100910 E","R3",1.91,"19023 – BILLARD CLUB GARDEEN"]
["CL","MARCEAUX JOSE","020447 L","R2",3.09,"19059 – BILLARD CLUB ROQUEBRUNOIS"]
["CL","MARCHAND PHILIPPE","164047 M","R4",1.35,"19001 – S. S. A. B. D AIX EN PROVENCE"]
["CL","MARCHANDISE MORAND JACQUELINE","177467 Z","R4",0.27,"19025 – BILLARD CLUB SISTERONNAIS"]
["CL","MASSIAS GUY","172680 W","R4",1.02,"19001 – S. S. A. B. D AIX EN PROVENCE"]
["CL","MATHIEU CLAUDE","129498 S","R4",1.02,"19098 – BILLARD CLUB LA FARE"]
["CL","MAUDUIT DIDIER","017615 N","R3",1.35,"19009 – CLUB BILLARD ISTREEN"]
["CL","MAURON BERNARD","149391 G","R2",2.65,"19023 – BILLARD CLUB GARDEEN"]
["CL","MAYNARD ALEXANDRE","112015 H","R3",1.84,"19056 – BILLARD CLUB DE NICE"]
["NC","MEGUIN ERIC","128466 A","R2",2.1,"19021 – BILLARD CLUB CAVAILLONNAIS"]
["CL","MELLET PIERRE","144802 I","R3",1.56,"19027 – ACADEMIE DE BILLARD DE BOLLENE"]
["CL","METAIS ALBAN","152604 Z","R3",2.0699999999999998,"19006 – BILLARD CLUB CARPENTRASSIEN"]
["CL","MEYER LUC","022260 E","R1",5.26,"19023 – BILLARD CLUB GARDEEN"]
["CL","MICHEL JACQUES","183513 W","R4",1.04,"19006 – BILLARD CLUB CARPENTRASSIEN"]
["NC","MILANA NICOLAS","176968 G","R4",0.96,"19098 – BILLARD CLUB LA FARE"]
["CL","MILLOT ROBERT","172218 T","R3",1.39,"19025 – BILLARD CLUB SISTERONNAIS"]
["CL","MOLAND PHILIPPE","022268 M","R3",2.09,"19059 – BILLARD CLUB ROQUEBRUNOIS"]
["CL","MONNET JEAN CLAUDE","022271 P","R2",2.83,"19021 – BILLARD CLUB CAVAILLONNAIS"]
["CL","MONTESINOS GILLES","136279 N","R4",0.98,"19012 – SALON BILLARD CLUB"]
["CL","MOREELS BERNARD","147624 L","R3",1.3,"19023 – BILLARD CLUB GARDEEN"]
["CL","MOUSSIER PATRICK","151456 B","R3",1.46,"19056 – BILLARD CLUB DE NICE"]
["CL","MUNOS JEAN","109063 T","R1",3.76,"19050 – BILLARD CLUB SAUSSETOIS"]
["CL","MUNOS VINCENT","109708 O","R2",2.5099999999999998,"19007 – BILLARD CLUB BERROIS"]
["NC","MUNOZ CHRISTIAN","022284 C","R3",1.68,"19098 – BILLARD CLUB LA FARE"]
["CL","NABHANE EMILE","166329 S","R4",1.06,"19006 – BILLARD CLUB CARPENTRASSIEN"]
["CL","NAPOLI SALVATORE","107150 E","R4",1,"19006 – BILLARD CLUB CARPENTRASSIEN"]
["CL","NARDELLI PASCAL","174977 S","R3",1.42,"19061 – ACAD.BILLARD ST RAPHAEL"]
["CL","NATELLA IDA","154573 P","R4",0.56999999999999995,"19056 – BILLARD CLUB DE NICE"]
["CL","NATELLA ROGER","154572 N","R3",1.6,"19056 – BILLARD CLUB DE NICE"]
["CL","NGUYEN PAUL","183754 H","R3",1.32,"19055 – ACADEMIE DE BILLARD DE MENTON"]
["CL","NOSSIN MARC","182190 H","R4",1.05,"19058 – ACADEMIE DE BILLARD DE BARBOSSI MANDELIEU"]
["CL","OLLIVIER DANIEL","020258 E","R2",2.29,"19009 – CLUB BILLARD ISTREEN"]
["CL","OUDOUX GERARD","128468 C","R3",1.3,"19023 – BILLARD CLUB GARDEEN"]
["CL","PACZESNY FABRICE","150400 D","R2",2.94,"19098 – BILLARD CLUB LA FARE"]
["CL","PAU CHRISTINE","177193 B","R4",0.48,"19025 – BILLARD CLUB SISTERONNAIS"]
["CL","PELLAT FRANCIS","141673 Z","R2",2.41,"19009 – CLUB BILLARD ISTREEN"]
["CL","PEREZ CHRISTIAN","130773 T","R3",1.56,"19009 – CLUB BILLARD ISTREEN"]
["CL","PERIS MICHEL","022321 N","R4",0.55000000000000004,"19056 – BILLARD CLUB DE NICE"]
["CL","PERRIN LIONEL","181624 S","R3",1.35,"19023 – BILLARD CLUB GARDEEN"]
["CL","PERTUZON NOLAN","179786 V","R4",0.36,"19009 – CLUB BILLARD ISTREEN"]
["CL","PETIT PHILIPPE","179183 P","R4",0.67,"19014 – BILLARD CLUB AVIGNONNAIS"]
["NC","PICARD FRANCK","189184 K","R2",2.44,"19017 – BILLARD CLUB PHOCEEN"]
["CL","PIELIN PASCAL","022330 W","N3",6.47,"19012 – SALON BILLARD CLUB"]
["CL","PIGNATEL FLORENT","112316 W","N3",8.6199999999999992,"19021 – BILLARD CLUB CAVAILLONNAIS"]
["CL","PILAVDJIAN JACQUES","165118 B","R4",0.72,"19017 – BILLARD CLUB PHOCEEN"]
["CL","PIRO COUDERC MARIE LAURE","177205 P","R4",0.28999999999999998,"19025 – BILLARD CLUB SISTERONNAIS"]
["CL","POIRIER DOMINIQUE","108010 G","R3",1.33,"19061 – ACAD.BILLARD ST RAPHAEL"]
["CL","PORA JEAN PAUL","170697 Q","R4",1.1100000000000001,"19009 – CLUB BILLARD ISTREEN"]
["CL","PORTET PATRICK","181316 H","R4",0.7,"19059 – BILLARD CLUB ROQUEBRUNOIS"]
["CL","POUGIN JEAN FRANCOIS","022346 M","R3",2.11,"19059 – BILLARD CLUB ROQUEBRUNOIS"]
["CL","POUJOL JEAN PAUL","022347 N","R3",1.32,"19014 – BILLARD CLUB AVIGNONNAIS"]
["CL","POULAIN FREDERIC","144719 D","R2",2.4300000000000002,"19016 – BILLARD CLUB ORANGEOIS"]
["CL","PREVOT GABRIEL","178400 N","R4",0.53,"19056 – BILLARD CLUB DE NICE"]
["CL","PUICHAULT REMY","172219 V","R3",1.84,"19025 – BILLARD CLUB SISTERONNAIS"]
["CL","QUEZEL ANDRE","136544 S","R3",1.4,"19014 – BILLARD CLUB AVIGNONNAIS"]
["CL","RAMOND JEAN MARC","022357 X","R2",2.82,"19058 – ACADEMIE DE BILLARD DE BARBOSSI MANDELIEU"]
["CL","RAUD DANIEL","161645 B","R3",1.81,"19098 – BILLARD CLUB LA FARE"]
["CL","RAVENET FRANCIS","157788 J","R3",1.68,"19059 – BILLARD CLUB ROQUEBRUNOIS"]
["CL","REVALOR MICHEL","119696 S","R2",2.86,"19050 – BILLARD CLUB SAUSSETOIS"]
["NC","REVELLIN CHRISTIAN","183164 R","R3",1.58,"19014 – BILLARD CLUB AVIGNONNAIS"]
["CL","RIBOLLA PATRICE","022366 G","R1",5.78,"19056 – BILLARD CLUB DE NICE"]
["NC","RICCI PATRICK","190607 G","R2",1.69,"19006 – BILLARD CLUB CARPENTRASSIEN"]
["CL","RICHARD GUY","022367 H","R1",4.0599999999999996,"19023 – BILLARD CLUB GARDEEN"]
["CL","RIVIER PATRICE","170733 E","R4",0.98,"19017 – BILLARD CLUB PHOCEEN"]
["CL","ROBBE RAYMOND","134183 X","R3",1.29,"19009 – CLUB BILLARD ISTREEN"]
["CL","ROBERT DIDIER","022450 M","N3",8.14,"19014 – BILLARD CLUB AVIGNONNAIS"]
["CL","RODRIGUES STEVE","171160 T","R4",1.07,"19090 – BILLARD CLUB ROGNAC"]
["CL","RONSAIN JEAN JACQUES","166175 A","R3",1.25,"19012 – SALON BILLARD CLUB"]
["CL","ROUANET CLAUDE","163166 E","R2",2.33,"19025 – BILLARD CLUB SISTERONNAIS"]
["CL","ROUGON ROBERT","101518 O","R2",3.47,"19007 – BILLARD CLUB BERROIS"]
["CL","RYCKELYNCK LAURENT","121397 D","R2",3.43,"19006 – BILLARD CLUB CARPENTRASSIEN"]
["CL","SALES THIERRY","175174 G","R4",0.98,"19061 – ACAD.BILLARD ST RAPHAEL"]
["CL","SARRALDE LOUIS","014138 U","R4",0.91,"19021 – BILLARD CLUB CAVAILLONNAIS"]
["NC","SAUNIER DANIEL","187864 A","R4",0.77,"19090 – BILLARD CLUB ROGNAC"]
["CL","SAVI OLIVIER","186195 L","R3",1.34,"19050 – BILLARD CLUB SAUSSETOIS"]
["CL","SAVOIA PATRICK","113222 S","R3",1.34,"19050 – BILLARD CLUB SAUSSETOIS"]
["CL","SCHAEFER ERNEST ROBERT","149694 L","R3",1.08,"19006 – BILLARD CLUB CARPENTRASSIEN"]
["CL","SCHEMBRI BERNARD","187494 Y","R4",0.98,"19017 – BILLARD CLUB PHOCEEN"]
["CL","SCHENK ROBERT","136540 O","R4",0.81,"19056 – BILLARD CLUB DE NICE"]
["CL","SEEMANN MICHAEL","182883 L","R4",0.95,"19025 – BILLARD CLUB SISTERONNAIS"]
["CL","SICARD GEORGES","163238 H","R3",1.65,"19025 – BILLARD CLUB SISTERONNAIS"]
["CL","SIEGLER JEAN PIERRE","168834 Q","R1",5.97,"19006 – BILLARD CLUB CARPENTRASSIEN"]
["CL","SIMON GERARD","010203 L","R3",2.09,"19014 – BILLARD CLUB AVIGNONNAIS"]
["CL","SINANIAN JEAN PAUL","022412 A","R2",1.63,"19017 – BILLARD CLUB PHOCEEN"]
["CL","SOLTANI OMAR","103578 U","R3",2.17,"19106 – BILLARD CLUB VINONNAIS"]
["CL","SPINNLER JEAN LUC","165931 K","R3",1.21,"19027 – ACADEMIE DE BILLARD DE BOLLENE"]
["CL","STEINMANN SEBASTIEN","020790 Q","R2",2.4,"19061 – ACAD.BILLARD ST RAPHAEL"]
["CL","SUEUR PASCAL","165039 Q","R3",1.32,"19058 – ACADEMIE DE BILLARD DE BARBOSSI MANDELIEU"]
["CL","TARDIEUX LUC","022429 R","R2",3.87,"19098 – BILLARD CLUB LA FARE"]
["NC","TAURINES CESSIO TOM","183512 V","R4",0.65,"19090 – BILLARD CLUB ROGNAC"]
["CL","TEYSSIER SERGE","132938 A","R2",2,"19007 – BILLARD CLUB BERROIS"]
["CL","THIBOUT HERVE","186654 K","R4",0.93,"19017 – BILLARD CLUB PHOCEEN"]
["CL","THOMAS PHILIPPE","168687 F","R4",0.95,"19023 – BILLARD CLUB GARDEEN"]
["CL","TIMSIT SERGE","148252 T","R4",0.56000000000000005,"19023 – BILLARD CLUB GARDEEN"]
["CL","TONNELIER JEAN PIERRE","132786 E","R3",1.53,"19106 – BILLARD CLUB VINONNAIS"]
["CL","TORCHIO GILBERT","184495 N","R4",1.0900000000000001,"19017 – BILLARD CLUB PHOCEEN"]
["CL","TORES JEAN LUC","135554 Q","R1",3.5,"19009 – CLUB BILLARD ISTREEN"]
["CL","TURPIN JEAN","172679 V","R3",1.25,"19001 – S. S. A. B. D AIX EN PROVENCE"]
["CL","VALVERDE JEAN YVES","153163 G","R3",1.3,"19023 – BILLARD CLUB GARDEEN"]
["CL","VASSE JEAN PIERRE","129880 K","R4",0.86,"19019 – BILLARD CLUB DE LA BAIE"]
["CL","VAUTRIN JEAN","022459 V","R2",2.5499999999999998,"19056 – BILLARD CLUB DE NICE"]
["CL","VICTOR DANIEL","147412 F","R4",0.98,"19019 – BILLARD CLUB DE LA BAIE"]
["CL","VIDAL RENE BERNARD","181240 A","R2",2.33,"19106 – BILLARD CLUB VINONNAIS"]
["CL","VIERA MAIA ARLINDO","148051 A","R3",1.82,"19061 – ACAD.BILLARD ST RAPHAEL"]
["CL","VIOU GERARD","147607 S","R2",3.01,"19098 – BILLARD CLUB LA FARE"]
["CL","VISCONTI JEAN","138731 V","R3",1.39,"19090 – BILLARD CLUB ROGNAC"]
["CL","VITALIEN PIERRE","119674 W","R2",2.75,"19016 – BILLARD CLUB ORANGEOIS"]
["CL","VUILLAUME JEAN CLAUDE","154571 M","R3",1.34,"19056 – BILLARD CLUB DE NICE"]
["CL","WALLON PATRICK","176943 E","R4",0.66,"19027 – ACADEMIE DE BILLARD DE BOLLENE"]
["CL","WILLAME PHILIPPE","152534 Y","R4",1.1499999999999999,"19001 – S. S. A. B. D AIX EN PROVENCE"]
["CL","YVOZ ALAIN","184288 N","R3",2.37,"19006 – BILLARD CLUB CARPENTRASSIEN"]
["CL","ZANDRINO ALAIN","134311 V","R3",1.65,"19007 – BILLARD CLUB BERROIS"]
["CL","ZOPPI AIME","144788 U","R2",3.38,"19106 – BILLARD CLUB VINONNAIS"]

{"sheet":"FICHE-JOUEUR","index":3,"n_rows":413,"n_cols":3,"rows_kept":413,"cut":false,"hidden":true,"merged":[[0,0,0,2]]}
["LMB \nFICHE JOUEURS\n"]
["Licence","NOM","PRENOM"]
["106287Z","ABAD","YANNICK"]
["169265J","ABDALLAH","ANTHONY"]
["159403P","ABELA","JOSEPH"]
["169267L","ACOCA","WILLIAM"]
["147622J","ESTABLIER","PIERRE"]
["165301A","BARTH","JEAN PAUL"]
["021810W","AKNIN","GABRIEL"]
["147980Y","AKTAS","JEAN"]
["149448T","ALESSI","JEAN PIERRE"]
["169144C","ALEXANIAN","ANTOINE"]
["151459E","ALIBERT","BRUNO"]
["159130S","ALVAREZ","PHILIPPE"]
["152035F","ALVISET","GUY"]
["155531F","AMOUROUX","LUC"]
["162879S","AMOUROUX","JACQUES ANTOINE"]
["153111A","ANDRIEUX","STEPHANE"]
["021818E","ANDRY","JEAN FRANCOIS"]
["021819F","ANGUE","PATRICK"]
["021820G","ANNESTAY","JACQUES"]
["021821H","ANTONIN","ALAIN"]
["021824K","ARBAUD","STEPHANE"]
["166320H","ATHLANI","MICHEL"]
["106513R","AUDIBERT","JEAN PIERRE"]
["138454E","AUDOUIN","JEAN JACQUES"]
["012464K","AZERAD","HUGO"]
["021839Z","AZOULAY","ALAIN"]
["115304U","BAILLON","JEAN"]
["153554G","BALESTRI","MAURICE"]
["023184S","BALLIGAND","SERGE"]
["109917P","BARBANNEAU","FREDERIC"]
["018535X","BARDET","JEAN PIERRE"]
["122300W","BARRALLON","JEAN PAUL"]
["115343H","BARTOLETTI","JULIEN"]
["129911P","BASSIGNANA","ROBERT"]
["103568K","BASSOUL","JEAN MARIE"]
["021860U","BAYARD","JEAN CLAUDE"]
["153113C","BECQ","GILLES"]
["021865Z","BELHASSEN","BENJAMIN"]
["132789H","BELTRITTI","JEAN YVES"]
["021872G","BENAVIDES","CLAUDE"]
["138275H","BENAVIDES","GERARD"]
["124802C","BENDAVID","KARINE"]
["159238K","BENIER","PATRICK"]
["160011A","BENSAID","NOEL"]
["125945B","BERNAT","JEAN PIERRE"]
["115001D","BERNICHON","PASCAL"]
["159202W","BIARD","ANDRE"]
["168684C","BODET","DENIS"]
["016248Y","BOFFA","BERNARD"]
["168836S","BOLAND","CHRISTIAN"]
["021894C","BONELLO","LUCIEN"]
["150422C","BONNEMAISON","DENIS"]
["101352E","BONNET","JONATHAN"]
["021900I","BONTOUX","MAX"]
["149287T","BORDES","BERNARD"]
["149288V","BORDES","CATHIE"]
["160000N","BOSSOT","JEAN"]
["155529D","BOULANT","CLAUDE"]
["021911T","BOURDELLES","LAURENT"]
["122662U","BOUTILLE","NICOLAS"]
["118665B","BOUTTIER","CHARLES"]
["125921D","BOUTTIER","CAROLINE"]
["149613Y","BOVET","MICHEL"]
["168877M","BOYER","ANNE MARIE"]
["021918A","BREDAT","RENE"]
["152345S","BREPSON","MARTIAL"]
["113104E","BRIAND","ALAIN"]
["021920C","BRIOIT","DOMINIQUE"]
["114733V","BRUANT","SYLVAIN"]
["136581D","BRUNERIE","JEAN LOUIS"]
["117642S","BUFFART","MICHELE"]
["109188O","BUI THAI","NINH"]
["155679R","BURELLI","GEORGES"]
["162877Q","BUROIS","FREDERIQUE"]
["151533K","BURON","JEAN LOUIS"]
["112311R","CACHO","DIDIER"]
["144785R","CAILLAUD","DANIEL"]
["158342L","CALUSIO","J PIERRE"]
["159692D","CANAL","FRANCOIS"]
["021944A","CAO","HUU TUOI"]
["146885L","CARAIL","MICHEL"]
["021946C","CARDINALI","DENIS"]
["101302G","CARPENTRAS","MICHEL"]
["152346T","CARRE","PIERRE"]
["118684U","CESARO","JEAN CLAUDE"]
["161620Z","CHABOUD","JACQUES"]
["021960Q","CHAIX","JOEL"]
["143166K","CHANTEUX","ALAIN"]
["151534L","CHAPLIN","CHRISTIAN"]
["021967X","CHARBIT","JEAN MARC"]
["152655E","CHEVRIER","JACQUES"]
["152831W","CHEVRIER","CAMILLE"]
["160332Z","CHICARD","ALAIN"]
["108854S","CHUZEVILLE","GILLES"]
["168880Q","CLAUDEN","PHILIPPE"]
["129497R","CLEMENT","GERARD"]
["106896K","CLUS","SANDY"]
["012827J","COHEN","RICHARD"]
["166294E","COLOMBET","MARIE"]
["166295F","COLOMBET","MICHEL"]
["166177C","CONTRAIN","JEROME"]
["021985P","COPPIN","JEAN MICHEL"]
["164007T","CORBIN","LUC"]
["106512Q","CORDONNIER","ROGER"]
["148136S","COSTAZ","ALAIN"]
["125938U","COSTE","PHILIPPE"]
["101268Y","COTARD","SANDRINE"]
["119932U","COUPET","PHILIPPE"]
["168287W","COURSAULT","BERNADETTE"]
["168685D","COZETTE","SYLVIE"]
["021996A","CREUZOT","PATRICE"]
["152067Q","CROUZET","JEAN ANDRE"]
["144718C","D ANTONIO","JEROME"]
["126747X","DAMIEN","JACQUES"]
["022002G","DAMON","GERARD"]
["022003H","DAMON","OLIVIER"]
["144640C","DANCARVILLE","GUY"]
["155526A","DAVID","THIERRY"]
["139487X","DE GRYSE","GERARD"]
["140113Z","DE HAAN","PATRICK"]
["163348C","DE LOOSE","FELIX"]
["159371E","DE LUCA","JEREMY"]
["127655V","DE RIGAL","DANIEL"]
["151535M","DE ROOY","PETER"]
["022009N","DEBOS","CHARLES"]
["119889D","DEFFE","MICHEL"]
["020635R","DEFRETIN","JOEL"]
["016772C","DEL MEDICO","JEAN"]
["152184S","DELAIRE","SYLVAIN"]
["166003N","DELAIRE","JEAN PIERRE"]
["022014S","DELATTRE","RAYMOND"]
["166346L","DELUC","BERNARD"]
["168662D","DEMARCQ","JEAN FRANCOIS"]
["159076J","DEMERLIAC","BRUNO"]
["142358I","DESMERO","RAYMOND"]
["115051B","DESWAZIERE","MICHEL"]
["163923C","DETAND","CHRISTIAN"]
["022033L","DHAINAUT","JEAN FRANCOIS"]
["135014W","DI BIN","JEAN MARIE"]
["160331Y","DION","JEAN LOUIS"]
["142363N","DONABEDIAN","DANIEL"]
["022039R","DOS SANTOS","FRANCIS"]
["169123E","DUBOC","BERTRAND"]
["152038J","DUBOURDEAUX","ROBERT"]
["013022W","DUBREUIL","FRANCK"]
["154651Z","DUCA","ALFONSO"]
["138116E","DUFLOT","ALAIN"]
["013037L","DUMET","BRUNO"]
["105621J","DUPUIS","MICHEL"]
["022049B","DURAND","FREDERIC"]
["022050C","DURAND","HERVE"]
["022052E","DUSFOUR","RENE"]
["102285B","DUSSAULE","PIERRE"]
["140809T","EL MEGHARY","MAROUANE"]
["163467G","ELEOUET","DANIEL"]
["162984G","FAISSOLLE","CHRISTELLE"]
["022066S","FAVARIO","CHRISTIAN"]
["022067T","FERAUD","GERARD"]
["129036Y","FERHAT","ACHOUR"]
["013111H","FERNANDEZ","MARC"]
["122658Q","FERRO","PHILIPPE"]
["114481D","FLORENT","CEDRIC"]
["101139Z","FONTAINE","DANY"]
["127035Z","FOREL","PHILIPPE"]
["152014H","FORGET","LIONEL"]
["022082I","FOSSATI","BRUNO"]
["022084K","FRANCO","GILBERT"]
["118688Y","FRANCO","HENRY"]
["167290M","FROMEYER","CORINNE"]
["159060R","FURNON","ROGER"]
["103216W","GABETTO","STEPHANE"]
["142316S","GALARDINI","RICHARD"]
["145236A","GAMBINO","NATHAN"]
["147288W","GAMEN","ANDRE"]
["022097X","GATTO","ANTOINE"]
["112833T","GAUCHER","JULIEN"]
["116278G","GAVALDA","PIERRE"]
["125944A","GAVANON","ANDRE"]
["163279C","GELAS","BERNARD"]
["150065P","GENDRAUD","PHILIPPE"]
["022103D","GERARD","PASCAL"]
["167330F","GERARD","THOMAS"]
["022104E","GERVAIS","GUILLAUME"]
["101282M","GHU","GERARD"]
["022108I","GIANNATTASIO","LUCIEN"]
["118661X","GIBARROUX","CHRISTOPHE"]
["149390F","GIFFARD","PHILIPPE"]
["022113N","GIMENEZ","SERGE"]
["022115P","GIOVANNETTI","DAMIEN"]
["129718E","GIRARD","JACQUES"]
["159240M","GLEISES","CHRISTIAN"]
["022120U","GLEIZES","JEAN"]
["157852D","GODARD","PASCAL"]
["131925B","GOUDENECHE","BERNARD"]
["022129D","GOUIRAN","GEORGES"]
["104054C","GOURSEAUD","YVES"]
["101259P","GOUZIEN","RENAUD"]
["166216V","GOUZIEN","YANN"]
["144636Y","GOUZOUGUEN","CHRISTIAN"]
["163514H","GRANDMAIRE","ROLAND"]
["149576H","GREGOIRE","J CLAUDE"]
["022132G","GRIFFON","JEAN JACQUES"]
["101403D","GROS","ROLAND"]
["107059R","GROS","MARIE PAULE"]
["135013V","GUERI","ROBERT"]
["103615F","GUERIN","RAYMOND"]
["022135J","GUERINEAU","THIERRY"]
["144796C","GUERINEAU","BRUNO"]
["104475H","GUEUG","PIERRE"]
["022137L","GUIBERT","JEAN MARIE"]
["109714U","HAEBERLE","JEAN"]
["011966G","HAHN","DANIEL"]
["022141P","HAROUTUNIAN","PIERRE"]
["166328R","HARTENSTEIN","BRUNO"]
["137523J","HAZE","PATRICK"]
["119933V","HERREMAN","SERGE"]
["137004K","HEURTAULT","JACKY"]
["163015Q","HUREL","JACQUES"]
["148913M","HURSTEL","BERNARD"]
["169266K","JANNOT","FREDERIC"]
["120276A","JAVEY","JEAN FRANCOIS"]
["022163L","JOB","GEORGES"]
["120814S","JONNARD","FREDERIC"]
["109412E","JUIGNET","CHRISTIAN"]
["162905W","JUMEL","RENE"]
["125930M","LABBE","CLAUDE"]
["109977X","LACOSSE","JEAN PAUL"]
["168708D","LACROIX","JEAN MARC"]
["168256M","LAFON","CHARLES"]
["016084Q","LANDE","GERARD"]
["168288X","LANNURIEN","THIERRY"]
["022190M","LAPLANCHE","YVON"]
["022195R","LAVASTROU","ROGER"]
["163278B","LE FAUCHEUR","LAURENT"]
["125949F","LE GUENNEC","CHRISTIAN"]
["120278C","LE MEUR","CLAUDE"]
["013510Q","LE RAY","JEAN CLAUDE"]
["141504M","LECOQ","ARNAUD"]
["117411V","LEFAUX","JEAN JACQUES"]
["110379J","LEMARTINET","ROBERT"]
["022205B","LEMESLE","FABRICE"]
["104233Z","LEMIERE","JEAN NOEL"]
["022209F","LIEGEOIS","DOMINIQUE"]
["159203X","LINA","SERGE"]
["146375V","LISI","ROGER"]
["168722T","LISSAJOUX","JEAN CLAUDE"]
["166755F","LOPEZ","TONY"]
["169129L","LORION","PHILIPPE"]
["022217N","LORKOVIC","JOSEPH"]
["168030R","LOSTAO","DOMINIQUE"]
["162076V","LUCENET","PAUL"]
["022221R","LUVISON","JEAN"]
["022223T","MACQUET","PATRICK"]
["165843P","MAGNIER","PIERRE"]
["114884Q","MAGNIEZ","JACQUES"]
["100910E","MALLEVAL","GERARD"]
["159667B","MALPAUX","GUY"]
["022229Z","MANZOLI","ANGELO"]
["101260Q","MARIOTTI","JEAN MICHEL"]
["159950J","MARME","HANS"]
["103581X","MASSERAN","PHILIPPE"]
["129498S","MATHIEU","CLAUDE"]
["017615N","MAUDUIT","DIDIER"]
["149391G","MAURON","BERNARD"]
[112015,"MAYNARD","ALEXANDRE"]
["163410V","MEALLIER","LOLA"]
["165932L","MEALLIER","RAPHAEL"]
["128466A","MEGUIN","ERIC"]
["144802I","MELLET","PIERRE"]
["152604Z","METAIS","ALBAN"]
["022260E","MEYER","LUC"]
["144792Y","MISRAKI","ROMAIN"]
["022266K","MOGLIA","EMILE"]
["167147G","MOLINA","MARIE"]
["022270O","MOLINAS","ROBERT"]
["022271P","MONNET","JEAN CLAUDE"]
["147624L","MOREELS","BERNARD"]
["151456B","MOUSSIER","PATRICK"]
["109063T","MUNOS","JEAN"]
["141788K","N GUYEN VAN DUC","MAX"]
["123392W","NARDI","LOUIS"]
["107263N","NASICA","PATRICK"]
["101269Z","NATALI","MICHEL"]
["154572N","NATELLA","ROGER"]
["154573P","NATELLA","IDA"]
["168689H","NAVARRO","BERNARD"]
["132345F","NEICHTHAUSER","GERARD"]
["128204Y","NICOLAS","JOEL"]
["146143X","NICOLE","CLAUDE"]
["154378C","ORSAL","SERGE"]
["128468C","OUDOUX","GERARD"]
["150400D","PACZESNY","FABRICE"]
["141673Z","PELLAT","FRANCIS"]
["144779L","PELOUIN","JEAN FRANCOIS"]
["103577T","PENEDO","MANUEL"]
["102907Z","PERDICARO","CAMILLE"]
["013896M","PEREIRA","CHARLES"]
["130773T","PEREZ","CHRISTIAN"]
["159241N","PEREZ","JEAN PIERRE"]
["022321N","PERIS","MICHEL"]
["150544K","PERRE","OLIVIER"]
["166927S","PEYRAN","PATRICE"]
["151709B","PIATEK","JEAN CLAUDE"]
["135135N","PICCHI","GERARD"]
["022330W","PIELIN","PASCAL"]
["112316W","PIGNATEL","FLORENT"]
["105404A","PINARD","PATRICE"]
["022336C","PIQUET","VICTOR"]
["111987F","PLAQUEVENT","ROMUALD"]
["108010G","POIRIER","DOMINIQUE"]
["022347N","POUJOL","JEAN PAUL"]
["144719D","POULAIN","FREDERIC"]
["022349P","POZNANSKI","JEAN MICHEL"]
["136544S","QUEZEL","ANDRE"]
["101290U","RANIERI","JEAN ANDRE"]
["163826X","RATON","PATRICE"]
["159200T","REGNOUARD","MICHEL"]
["133622I","RENAUD","JEAN PAUL"]
["119696S","REVALOR","MICHEL"]
["022366G","RIBOLLA","PATRICE"]
["022367H","RICHARD","GUY"]
["169268M","RIETTE","MARJORIE"]
["125943Z","RIFFET","BERNARD"]
["022372M","RIGNOLS","PHILIPPE"]
["134183X","ROBBE","RAYMOND"]
["022376Q","ROBERT","DOMINIQUE"]
["022450M","ROBERT","DIDIER"]
["169274T","ROCA","STEPHANIE"]
["103608Y","RODRIGUEZ","STEPHAN"]
["163945B","RODRIGUEZ","RONNIE"]
["134843H","ROGER","GERARD"]
["166175A","RONSSAIN","JEAN JACQUES"]
["166176B","ROTH","ALAIN"]
["101518O","ROUGON","ROBERT"]
["163989Z","ROUSSEL","ALAIN"]
["022384Y","ROUX","CLAUDE"]
["122208I","SABLON","ROGER"]
["169318R","SAFI","AZIZ"]
["136546U","SALAMA","ALAIN"]
["120008S","SAMUEL","CHRISTIAN"]
["163352G","SANCHEZ PEREZ","FRANCISCO"]
["167423G","SANTANA","ELOY"]
["022391F","SANTIAGO","JEAN JOSEPH"]
["022393H","SANTORO","ROBERT"]
["014138U","SARRALDE","LOUIS"]
["164008V","SAUVAN","HENRY"]
["144798E","SAUZE","DENIS"]
["113222S","SAVOIA","PATRICK"]
["149694L","SCHAEFER","ERNEST ROBERT"]
["136540O","SCHENK","ROBERT"]
["167170G","SEJOURNE","LAURENT"]
["022406U","SELLIER","MICHEL"]
["155543T","SEREAULT","CLAUDE"]
["149899J","SERMON","FABIO"]
["148608F","SEYNHAEVE","BAUDOUIN"]
["163238H","SICARD","GEORGES"]
["168834Q","SIEGLER","JEAN PIERRE"]
["165933M","SIMANTOB","JEAN LUC"]
["156378B","SIMIAN","FABIENNE"]
["010203L","SIMON","GERARD"]
["022412A","SINANIAN","JEAN PAUL"]
["151274D","SOLARI","ANNICK"]
["151275E","SOLARI","GERARD"]
["103578U","SOLTANI","OMAR"]
["162906X","SOUCHERE","JEAN JACQUES"]
["149696N","SOUTEYRAND","CHRISTIAN"]
["165931K","SPINNLER","JEAN LUC"]
["020790Q","STEINMANN","SEBASTIEN"]
["156278S","STRAUDO","MICHEL"]
["165039Q","SUEUR","PASCAL"]
["143055D","TABUADA","FRANCOIS"]
["022429R","TARDIEUX","LUC"]
["133907H","TARDY","JEAN CLAUDE"]
["143024Y","TARDY","PIERRE YVES"]
["123701T","TELOT","DOMINIQUE"]
["168687F","THOMAS","PHILIPPE"]
["148252T","TIMSIT","SERGE"]
["131820A","TONINI BOSSI","LAURENT"]
["132786E","TONNELIER","JEAN PIERRE"]
["135554Q","TORES","JEAN LUC"]
["014256I","TOURE","MADOU"]
["139062O","TOUREILLE","ALAIN"]
["022441D","TOURET","THIERRY"]
["022443F","TRAN","KEVIN"]
["131929F","TRAN DINH","VUONG"]
["138277J","TRAPPE","JEAN MARIE"]
["022446I","TRIVINO","RENE"]
["107282G","VAHE","GUILLAUME"]
["139591X","VAN HACK","DIDIER"]
["022456S","VASCONE","JOHNY"]
["129880K","VASSE","JEAN PIERRE"]
["022459V","VAUTRIN","JEAN"]
["022466C","VIALATTE","ANDRE"]
["166670N","VIAN","MORGAN"]
["022467D","VIBOUREL","ETIENNE"]
["147412F","VICTOR","DANIEL"]
["148051A","VIERA MAIA","ARLINDO"]
["164317F","VILLARD","PATRICE"]
["101485H","VILLASEVIL","ANTONIO"]
["153007M","VILLEMAIN","SYLVAIN"]
["147607S","VIOU","GERARD"]
["138731V","VISCONTI","JEAN"]
["119674W","VITALIEN","PIERRE"]
["022476M","VIVALDI","ANDRE"]
["154571M","VUILLAUME","JEAN CLAUDE"]
["014349X","WEINER","GUY"]
["143308W","YORAC","ARNOLF"]
["166159H","YUNG","NADEGE"]
["134311V","ZANDRINO","ALAIN"]
["125457H","ZOPPI","CEDRIC"]
["144788U","ZOPPI","AIME"]

{"sheet":"Saisie des joueurs","index":4,"n_rows":87,"n_cols":28,"rows_kept":87,"cut":false,"hidden":true,"merged":[[86,2,86,3],[78,2,83,6],[10,3,10,4],[12,2,12,6],[14,2,14,6],[15,2,15,6],[33,8,36,8],[37,8,40,8],[21,8,24,8],[25,8,28,8],[29,8,32,8],[0,2,1,6],[2,2,2,6],[14,10,14,14],[17,8,20,8],[15,10,15,14],[1,10,12,14],[4,5,8,6],[8,3,8,4],[61,8,64,8],[65,8,68,8],[69,8,72,8],[73,8,76,8],[41,8,44,8],[45,8,48,8],[49,8,52,8],[53,8,56,8],[57,8,60,8]]}
[null,null,"DISTRICT 13/84"]
[null,null,null,null,null,null,null,"Mis à jour le 05/11/2025",null,null,"Fabrication des poules avec le serpentin.\nLes poules devront ensuite être réparties dans les différents clubs volontaires pour organiser ce tournoi."]
[null,null,"Saisir ici les informations concernant le tournoi."]
[]
[null,null,"Date  (jj/mm/aa)"]
[]
[null,null,"N° de la compétition"]
[]
[null,null,"Mode de jeu-Catégorie","LIBRE"]
[]
[null,null,"Club organisateur",null,null,"Directeur de jeu"]
[]
[null,null,"TRI 4 A 60 JOUEURS PAR CATEGORIE"]
[]
[null,null,"Dans cet onglet \"Saisir dans la liste déroulante les NOMS  des joueurs de cette Colonne\", l'ordre à saisir n'est pas important :\nMettre le joueur ABSENT sur les cases vides restantes, OU sur un joueur forfait au dernier moment,\n ensuite cliquer sur le \"BOUTON TRI \"",null,null,null,null,null,null,null,"RESULTAT DU TRI DES POULES"]
[null,null,"Ne pas toucher au cellules ci-dessous",null,null,null,null,null,null,null,"Ne pas toucher au cellules ci-dessous"]
["N°","Liste déroulante NOM ","N° Licence","NOM PRENOM","Catégorie","Moyenne 2,80","Club",null,null,null,"Licences","NOM PRENOM","Catégorie","Moyenne 2,80","Club",null,null,"Licences","NOMS","Catégorie","Moyenne sur 3,10","Club",null,"Licences","NOM PRENOM","Catégorie","Moyenne 2,80","Club"]
[{"$f":"ROW(A1)","v":1}]
[{"$f":"ROW(A2)","v":2}]
[3]
[4]
[5]
[6]
[7]
[8]
[9]
[10]
[11]
[12]
[13]
[14]
[15]
[16]
[17]
[18]
[19]
[20]
[21]
[22]
[23]
[24]
[25]
[26]
[27]
[28]
[29]
[30]
[31]
[32]
[33]
[34]
[35]
[36]
[37]
[38]
[39]
[40]
[41]
[42]
[43]
[44]
[45]
[46]
[47]
[48]
[49]
[50]
[51]
[52]
[53]
[54]
[55]
[56]
[57]
[58]
[59]
[60]
[]
[null,null,"1) Saisir uniquement les NOMS A SAISIR Colonne B des JOUEURS. \n2) Activer les macros dans la barre au dessus \"Avertissement de sécurité - Les macros ont été désactivées\".\nCliquer sur \"Options...\" et \"Activer ce contenu\" puis \"OK\" sans tenir compte de l'avertissement.\n3) Puis appuyez sur le \"Bouton de Tri\". Le tableau de droite donne le résultat du tri et chaque onglet \"billard 1 à 6\" reçoit les joueurs.\nCe graphique permet de préparer des tournois de 4 à 24 joueurs, en fonction du nombre d'inscrits."]
[]
[]
[]
[]
[]
[]
[]
[null,null,"™A.LETELLIER"]

{"sheet":"R1","index":5,"n_rows":87,"n_cols":21,"rows_kept":87,"cut":false,"hidden":true,"merged":[[61,14,64,14],[65,14,68,14],[69,14,72,14],[73,14,76,14],[41,14,44,14],[45,14,48,14],[49,14,52,14],[53,14,56,14],[57,14,60,14],[21,14,24,14],[25,14,28,14],[29,14,32,14],[33,14,36,14],[37,14,40,14],[41,7,44,7],[0,1,1,5],[1,9,12,13],[2,1,2,5],[4,4,8,5],[8,2,8,3],[10,2,10,3],[12,1,12,5],[14,1,14,5],[14,9,14,13],[15,1,15,5],[15,9,15,13],[17,7,20,7],[17,6,20,6],[17,14,20,14],[73,7,76,7],[78,1,83,5],[86,1,86,2],[49,7,52,7],[53,7,56,7],[57,7,60,7],[61,7,64,7],[65,7,68,7],[69,7,72,7],[45,7,48,7],[21,7,24,7],[25,7,28,7],[29,7,32,7],[33,7,36,7],[37,7,40,7]]}
[null,"COMITE DEPARTEMENTAL 13"]
[null,null,null,null,null,null,null,null,null,"Fabrication des poules avec le serpentin.\nLes poules devront ensuite être réparties dans les différents clubs volontaires pour organiser ce tournoi."]
[null,"Saisir ici les informations concernant le tournoi."]
[]
[null,"Date  (jj/mm/aa)"]
[]
[null,"N° de la compétition"]
[]
[null,"Mode de jeu-Catégorie","LIBRE"]
[]
[null,"Club organisateur",null,null,"Directeur de jeu"]
[]
[null,"TRI DES POULE R1 MODE SERPENTIN"]
[]
[null,"Dans cet onglet \"Saisir dans la liste déroulante les NOMS  des joueurs de cette Colonne\", l'ordre à saisir n'est pas important :\nMettre le joueur ABSENT sur les cases vides restantes, OU sur un joueur forfait au dernier moment,\n ensuite cliquer sur le \"BOUTON TRI \"",null,null,null,null,null,null,null,"RESULTAT DU TRI DES POULES"]
[null,"Ne pas toucher au cellules ci-dessous",null,null,null,null,null,null,null,"Ne pas toucher au cellules ci-dessous"]
["N°","N° Licence","NOM PRENOM","Catégorie","Moyenne 2,80","Club",null,null,null,"Licences","NOM PRENOM","Catégorie","Moyenne 2,80","Club",null,null,"Licences","NOM PRENOM","Catégorie","Moyenne 2,80","Club"]
[{"$f":"ROW(A1)","v":1},null,null,null,null,null,null,null,null,null,null,null,null,null,null,null,"022092 S","GANTOIS GILLES","R1","6,7","19016 – BILLARD CLUB ORANGEOIS"]
[{"$f":"ROW(A2)","v":2},null,null,null,null,null,null,null,null,null,null,null,null,null,null,null,"021944 A","CAO HUU TUOI","R1","6,03","19098 – BILLARD CLUB LA FARE"]
[3,null,null,null,null,null,null,null,null,null,null,null,null,null,null,null,"109063 T","MUNOS JEAN","R1","3,76","19050 – BILLARD CLUB SAUSSETOIS"]
[4]
[5]
[6]
[7]
[8]
[9]
[10]
[11]
[12]
[13]
[14]
[15]
[16]
[17]
[18]
[19]
[20]
[21]
[22]
[23]
[24]
[25]
[26]
[27]
[28]
[29]
[30]
[31]
[32]
[33]
[34]
[35]
[36]
[37]
[38]
[39]
[40]
[41]
[42]
[43]
[44]
[45]
[46]
[47]
[48]
[49]
[50]
[51]
[52]
[53]
[54]
[55]
[56]
[57]
[58]
[59]
[60]
[]
[null,"1) Saisir uniquement les NOMS A SAISIR Colonne B des JOUEURS. \n2) Activer les macros dans la barre au dessus \"Avertissement de sécurité - Les macros ont été désactivées\".\nCliquer sur \"Options...\" et \"Activer ce contenu\" puis \"OK\" sans tenir compte de l'avertissement.\n3) Puis appuyez sur le \"Bouton de Tri\". Le tableau de droite donne le résultat du tri et chaque onglet \"billard 1 à 6\" reçoit les joueurs.\nCe graphique permet de préparer des tournois de 4 à 24 joueurs, en fonction du nombre d'inscrits."]
[]
[]
[]
[]
[]
[]
[]
[null,"™A.LETELLIER"]

{"sheet":"R2","index":6,"n_rows":87,"n_cols":21,"rows_kept":87,"cut":false,"hidden":true,"merged":[[65,14,68,14],[69,14,72,14],[73,14,76,14],[37,14,40,14],[41,14,44,14],[45,14,48,14],[49,14,52,14],[0,1,1,5],[1,9,12,13],[2,1,2,5],[4,4,8,5],[8,2,8,3],[10,2,10,3],[12,1,12,5],[14,1,14,5],[14,9,14,13],[15,1,15,5],[15,9,15,13],[17,7,20,7],[78,1,83,5],[86,1,86,2],[49,7,52,7],[53,7,56,7],[57,7,60,7],[61,7,64,7],[65,7,68,7],[69,7,72,7],[17,14,20,14],[29,14,32,14],[25,14,28,14],[21,14,24,14],[73,7,76,7],[45,7,48,7],[21,7,24,7],[25,7,28,7],[29,7,32,7],[33,7,36,7],[37,7,40,7],[41,7,44,7],[33,14,36,14],[53,14,56,14],[57,14,60,14],[61,14,64,14]]}
[null,"COMITE DEPARTEMENTAL 13"]
[null,null,null,null,null,null,null,null,null,"Fabrication des poules avec le serpentin.\nLes poules devront ensuite être réparties dans les différents clubs volontaires pour organiser ce tournoi."]
[null,"Saisir ici les informations concernant le tournoi."]
[]
[null,"Date  (jj/mm/aa)"]
[]
[null,"N° de la compétition"]
[]
[null,"Mode de jeu-Catégorie","LIBRE"]
[]
[null,"Club organisateur",null,null,"Directeur de jeu"]
[]
[null,"TRI DES POULE R2 MODE SERPENTIN"]
[]
[null,"Dans cet onglet \"Saisir dans la liste déroulante les NOMS  des joueurs de cette Colonne\", l'ordre à saisir n'est pas important :\nMettre le joueur ABSENT sur les cases vides restantes, OU sur un joueur forfait au dernier moment,\n ensuite cliquer sur le \"BOUTON TRI \"",null,null,null,null,null,null,null,"RESULTAT DU TRI DES POULES"]
[null,"Ne pas toucher au cellules ci-dessous",null,null,null,null,null,null,null,"Ne pas toucher au cellules ci-dessous"]
["N°","N° Licence","NOM PRENOM","Catégorie","Moyenne 2,80","Club",null,null,null,"Licences","NOM PRENOM","Catégorie","Moyenne 2,80","Club",null,null,"Licences","NOMS","Catégorie","Moyenne 2,80","Club"]
[{"$f":"ROW(A1)","v":1},null,null,null,null,null,null,null,null,"105373 V",null,null,null,null,null,null,"105373 V","LEDUCQ MORGAN","R2","4,89","19014 – BILLARD CLUB AVIGNONNAIS"]
[{"$f":"ROW(A2)","v":2},null,null,null,null,null,null,null,null,"119696 S",null,null,null,null,null,null,"101518 O","ROUGON ROBERT","R2","3,47","19007 – BILLARD CLUB BERROIS"]
[3,null,null,null,null,null,null,null,null,"113104 E",null,null,null,null,null,null,"157852 D","GODARD PASCAL","R2","3,44","19006 – BILLARD CLUB CARPENTRASSIEN"]
[4,null,null,null,null,null,null,null,null,"132938 A",null,null,null,null,null,null,"121397 D","RYCKELYNCK LAURENT","R2","3,43","19006 – BILLARD CLUB CARPENTRASSIEN"]
[5,null,null,null,null,null,null,null,null,"101518 O",null,null,null,null,null,null,"012782 Q","CHASTAN GEORGES","R2","3,27","19006 – BILLARD CLUB CARPENTRASSIEN"]
[6,null,null,null,null,null,null,null,null,"150400 D",null,null,null,null,null,null,"109917 P","BARBANNEAU FREDERIC","R2","3,13","19012 – SALON BILLARD CLUB"]
[7,null,null,null,null,null,null,null,null,"103568 K",null,null,null,null,null,null,"150400 D","PACZESNY FABRICE","R2","2,94","19098 – BILLARD CLUB LA FARE"]
[8,null,null,null,null,null,null,null,null,"020258 E",null,null,null,null,null,null,"119696 S","REVALOR MICHEL","R2","2,86","19050 – BILLARD CLUB SAUSSETOIS"]
[9,null,null,null,null,null,null,null,null,"157852 D",null,null,null,null,null,null,"113104 E","BRIAND ALAIN","R2","2,82","19002 – SPORT AMAT.DE BILLARD MARSEILLAIS"]
[10,null,null,null,null,null,null,null,null,"109917 P",null,null,null,null,null,null,"103568 K","BASSOUL JEAN MARIE","R2","2,8","19006 – BILLARD CLUB CARPENTRASSIEN"]
[11,null,null,null,null,null,null,null,null,"119674 W",null,null,null,null,null,null,"119674 W","VITALIEN PIERRE","R2","2,75","19016 – BILLARD CLUB ORANGEOIS"]
[12,null,null,null,null,null,null,null,null,"141673 Z",null,null,null,null,null,null,"189184 K","PICARD FRANCK","R2","2,44","19017 – BILLARD CLUB PHOCEEN"]
[13,null,null,null,null,null,null,null,null,"121397 D",null,null,null,null,null,null,"144719 D","POULAIN FREDERIC","R2","2,43","19016 – BILLARD CLUB ORANGEOIS"]
[14,null,null,null,null,null,null,null,null,"012782 Q",null,null,null,null,null,null,"141673 Z","PELLAT FRANCIS","R2","2,41","19009 – CLUB BILLARD ISTREEN"]
[15,null,null,null,null,null,null,null,null,"189184 K",null,null,null,null,null,null,"020258 E","OLLIVIER DANIEL","R2","2,29","19009 – CLUB BILLARD ISTREEN"]
[16,null,null,null,null,null,null,null,null,"144719 D",null,null,null,null,null,null,"132938 A","TEYSSIER SERGE","R2",2,"19007 – BILLARD CLUB BERROIS"]
[17]
[18]
[19]
[20]
[21]
[22]
[23]
[24]
[25]
[26]
[27]
[28]
[29]
[30]
[31]
[32]
[33]
[34]
[35]
[36]
[37]
[38]
[39]
[40]
[41]
[42]
[43]
[44]
[45]
[46]
[47]
[48]
[49]
[50]
[51]
[52]
[53]
[54]
[55]
[56]
[57]
[58]
[59]
[60]
[]
[null,"1) Saisir uniquement les NOMS A SAISIR Colonne B des JOUEURS. \n2) Activer les macros dans la barre au dessus \"Avertissement de sécurité - Les macros ont été désactivées\".\nCliquer sur \"Options...\" et \"Activer ce contenu\" puis \"OK\" sans tenir compte de l'avertissement.\n3) Puis appuyez sur le \"Bouton de Tri\". Le tableau de droite donne le résultat du tri et chaque onglet \"billard 1 à 6\" reçoit les joueurs.\nCe graphique permet de préparer des tournois de 4 à 24 joueurs, en fonction du nombre d'inscrits."]
[]
[]
[]
[]
[]
[]
[]
[null,"™A.LETELLIER"]

{"sheet":"R3","index":7,"n_rows":87,"n_cols":21,"rows_kept":87,"cut":false,"hidden":true,"merged":[[14,1,14,5],[14,9,14,13],[15,1,15,5],[15,9,15,13],[0,1,1,5],[1,9,12,13],[2,1,2,5],[4,4,8,5],[8,2,8,3],[10,2,10,3],[12,1,12,5],[86,1,86,2],[17,7,20,8],[21,7,24,8],[49,7,52,7],[53,7,56,7],[57,7,60,7],[61,7,64,7],[65,7,68,7],[69,7,72,7],[25,7,28,7],[29,7,32,7],[33,7,36,7],[37,7,40,7],[41,7,44,7],[45,7,48,7],[78,1,83,5],[73,7,76,7],[69,14,72,14],[73,14,76,14],[17,14,20,14],[21,14,24,14],[25,14,28,14],[49,14,52,14],[53,14,56,14],[57,14,60,14],[61,14,64,14],[65,14,68,14],[29,14,32,14],[33,14,36,14],[37,14,40,14],[41,14,44,14],[45,14,48,14]]}
[null,"COMITE DEPARTEMENTAL 13"]
[null,null,null,null,null,null,null,null,null,"Fabrication des poules avec le serpentin.\nLes poules devront ensuite être réparties dans les différents clubs volontaires pour organiser ce tournoi."]
[null,"Saisir ici les informations concernant le tournoi."]
[]
[null,"Date  (jj/mm/aa)"]
[]
[null,"N° de la compétition"]
[]
[null,"Mode de jeu-Catégorie","LIBRE"]
[]
[null,"Club organisateur",null,null,"Directeur de jeu"]
[]
[null,"TRI DES POULE R3 MODE SERPENTIN"]
[]
[null,"Dans cet onglet \"Saisir dans la liste déroulante les NOMS  des joueurs de cette Colonne\", l'ordre à saisir n'est pas important :\nMettre le joueur ABSENT sur les cases vides restantes, OU sur un joueur forfait au dernier moment,\n ensuite cliquer sur le \"BOUTON TRI \"",null,null,null,null,null,null,null,"RESULTAT DU TRI DES POULES"]
[null,"Ne pas toucher au cellules ci-dessous",null,null,null,null,null,null,null,"Ne pas toucher au cellules ci-dessous"]
["N°","N° Licence","NOM PRENOM","Catégorie","Moyenne 2,80","Club",null,null,null,"Licences","NOM PRENOM","Catégorie","Moyenne 2,80","Club",null,null,"Licences","NOM PRENOM","Catégorie","Moyenne 2,80","Club"]
[{"$f":"ROW(A1)","v":1},null,null,null,null,null,null,null,null,"184288 N",null,null,null,null,null,null,"184288 N","YVOZ ALAIN","R3","2,37","19006 – BILLARD CLUB CARPENTRASSIEN"]
[{"$f":"ROW(A2)","v":2},null,null,null,null,null,null,null,null,"163467 G",null,null,null,null,null,null,"181199 F","LANDERECTHE PASCAL","R3","2,3","19007 – BILLARD CLUB BERROIS"]
[3,null,null,null,null,null,null,null,null,"134193 H",null,null,null,null,null,null,"011966 G","HAHN DANIEL","R3","2,26","19017 – BILLARD CLUB PHOCEEN"]
[4,null,null,null,null,null,null,null,null,null,null,null,null,null,null,null,"102285 B","DUSSAULE PIERRE","R3","2,11","19027 – ACADEMIE DE BILLARD DE BOLLENE"]
[5,null,null,null,null,null,null,null,null,"181199 F",null,null,null,null,null,null,"010203 L","SIMON GERARD","R3","2,09","19014 – BILLARD CLUB AVIGNONNAIS"]
[6,null,null,null,null,null,null,null,null,"163278 B",null,null,null,null,null,null,"021818 E","ANDRY JEAN FRANCOIS","R3","1,96","19090 – BILLARD CLUB ROGNAC"]
[7,null,null,null,null,null,null,null,null,"144802 I",null,null,null,null,null,null,"163278 B","LE FAUCHEUR LAURENT","R3","1,93","19098 – BILLARD CLUB LA FARE"]
[8,null,null,null,null,null,null,null,null,null,null,null,null,null,null,null,"163467 G","ELEOUET DANIEL","R3","1,85","19006 – BILLARD CLUB CARPENTRASSIEN"]
[9,null,null,null,null,null,null,null,null,"011966 G",null,null,null,null,null,null,"134193 H","DRONET CHRYSTEL","R3","1,73","19006 – BILLARD CLUB CARPENTRASSIEN"]
[10,null,null,null,null,null,null,null,null,"021818 E",null,null,null,null,null,null,"144802 I","MELLET PIERRE","R3","1,56","19027 – ACADEMIE DE BILLARD DE BOLLENE"]
[11,null,null,null,null,null,null,null,null,"021894 C",null,null,null,null,null,null,"021894 C","BONELLO LUCIEN","R3","1,54","19090 – BILLARD CLUB ROGNAC"]
[12,null,null,null,null,null,null,null,null,"149694 L",null,null,null,null,null,null,"138731 V","VISCONTI JEAN","R3","1,39","19090 – BILLARD CLUB ROGNAC"]
[13,null,null,null,null,null,null,null,null,"102285 B",null,null,null,null,null,null,"022129 D","GOUIRAN GEORGES","R3","1,33","19050 – BILLARD CLUB SAUSSETOIS"]
[14,null,null,null,null,null,null,null,null,"010203 L",null,null,null,null,null,null,"149694 L","SCHAEFER ERNEST ROBERT","R3","1,08","19006 – BILLARD CLUB CARPENTRASSIEN"]
[15,null,null,null,null,null,null,null,null,"138731 V"]
[16,null,null,null,null,null,null,null,null,"022129 D"]
[17]
[18]
[19]
[20]
[21]
[22]
[23]
[24]
[25]
[26]
[27]
[28]
[29]
[30]
[31]
[32]
[33]
[34]
[35]
[36]
[37]
[38]
[39]
[40]
[41]
[42]
[43]
[44]
[45]
[46]
[47]
[48]
[49]
[50]
[51]
[52]
[53]
[54]
[55]
[56]
[57]
[58]
[59]
[60]
[]
[null,"1) Saisir uniquement les NOMS A SAISIR Colonne B des JOUEURS. \n2) Activer les macros dans la barre au dessus \"Avertissement de sécurité - Les macros ont été désactivées\".\nCliquer sur \"Options...\" et \"Activer ce contenu\" puis \"OK\" sans tenir compte de l'avertissement.\n3) Puis appuyez sur le \"Bouton de Tri\". Le tableau de droite donne le résultat du tri et chaque onglet \"billard 1 à 6\" reçoit les joueurs.\nCe graphique permet de préparer des tournois de 4 à 24 joueurs, en fonction du nombre d'inscrits."]
[]
[]
[]
[]
[]
[]
[]
[null,"™A.LETELLIER"]

{"sheet":"R4","index":8,"n_rows":87,"n_cols":21,"rows_kept":87,"cut":false,"hidden":true,"merged":[[0,1,1,5],[1,9,12,13],[2,1,2,5],[4,4,8,5],[8,2,8,3],[10,2,10,3],[12,1,12,5],[14,1,14,5],[14,9,14,13],[15,1,15,5],[15,9,15,13],[17,7,20,7],[86,1,86,2],[49,7,52,7],[53,7,56,7],[57,7,60,7],[61,7,64,7],[65,7,68,7],[69,7,72,7],[25,14,28,14],[21,14,24,14],[17,14,20,14],[73,7,76,7],[78,1,83,5],[45,7,48,7],[21,7,24,7],[25,7,28,7],[29,7,32,7],[33,7,36,7],[37,7,40,7],[41,7,44,7],[29,14,32,14],[33,14,36,14],[41,14,44,14],[37,14,40,14],[53,14,56,14],[49,14,52,14],[45,14,48,14],[73,14,76,14],[69,14,72,14],[65,14,68,14],[61,14,64,14],[57,14,60,14]]}
[null,"COMITE DEPARTEMENTAL 13"]
[null,null,null,null,null,null,null,null,null,"Fabrication des poules avec le serpentin.\nLes poules devront ensuite être réparties dans les différents clubs volontaires pour organiser ce tournoi."]
[null,"Saisir ici les informations concernant le tournoi."]
[]
[null,"Date  (jj/mm/aa)"]
[]
[null,"N° de la compétition"]
[]
[null,"Mode de jeu-Catégorie","LIBRE"]
[]
[null,"Club organisateur",null,null,"Directeur de jeu"]
[]
[null,"TRI DES POULE R4 MODE SERPENTIN"]
[]
[null,"Dans cet onglet \"Saisir dans la liste déroulante les NOMS  des joueurs de cette Colonne\", l'ordre à saisir n'est pas important :\nMettre le joueur ABSENT sur les cases vides restantes, OU sur un joueur forfait au dernier moment,\n ensuite cliquer sur le \"BOUTON TRI \"",null,null,null,null,null,null,null,"RESULTAT DU TRI DES POULES"]
[null,"Ne pas toucher au cellules ci-dessous",null,null,null,null,null,null,null,"Ne pas toucher au cellules ci-dessous"]
["N°","N° Licence","NOM PRENOM","Catégorie","Moyenne 2,80","Club",null,null,null,"Licences","NOM PRENOM","Catégorie","Moyenne 2,80","Club",null,null,"Licences","NOMS","Catégorie","Moyenne sur 3,10","Club"]
[{"$f":"ROW(A1)","v":1},null,null,null,null,null,null,null,null,"164047 M",null,null,null,null,null,null,"164047 M","MARCHAND PHILIPPE","R4","1,35","19001 – S. S. A. B. D AIX EN PROVENCE"]
[{"$f":"ROW(A2)","v":2},null,null,null,null,null,null,null,null,"136279 N",null,null,null,null,null,null,"159790 K","BENOIT MICHEL","R4","1,2","19027 – ACADEMIE DE BILLARD DE BOLLENE"]
[3,null,null,null,null,null,null,null,null,"187494 Y",null,null,null,null,null,null,"184495 N","TORCHIO GILBERT","R4","1,09","19017 – BILLARD CLUB PHOCEEN"]
[4,null,null,null,null,null,null,null,null,null,null,null,null,null,null,null,"146375 V","LISI ROGER","R4","1,08","19007 – BILLARD CLUB BERROIS"]
[5,null,null,null,null,null,null,null,null,"159790 K",null,null,null,null,null,null,"183513 W","MICHEL JACQUES","R4","1,04","19006 – BILLARD CLUB CARPENTRASSIEN"]
[6,null,null,null,null,null,null,null,null,"183513 W",null,null,null,null,null,null,"136279 N","MONTESINOS GILLES","R4","0,98","19012 – SALON BILLARD CLUB"]
[7,null,null,null,null,null,null,null,null,"186654 K",null,null,null,null,null,null,"187494 Y","SCHEMBRI BERNARD","R4","0,98","19017 – BILLARD CLUB PHOCEEN"]
[8,null,null,null,null,null,null,null,null,null,null,null,null,null,null,null,"186654 K","THIBOUT HERVE","R4","0,93","19017 – BILLARD CLUB PHOCEEN"]
[9,null,null,null,null,null,null,null,null,"184495 N",null,null,null,null,null,null,"160332 Z","CHICARD ALAIN","R4","0,75","19006 – BILLARD CLUB CARPENTRASSIEN"]
[10,null,null,null,null,null,null,null,null,"146375 V",null,null,null,null,null,null,"176943 E","WALLON PATRICK","R4","0,66","19027 – ACADEMIE DE BILLARD DE BOLLENE"]
[11,null,null,null,null,null,null,null,null,"160332 Z"]
[12,null,null,null,null,null,null,null,null,"176943 E"]
[13]
[14]
[15]
[16]
[17]
[18]
[19]
[20]
[21]
[22]
[23]
[24]
[25]
[26]
[27]
[28]
[29]
[30]
[31]
[32]
[33]
[34]
[35]
[36]
[37]
[38]
[39]
[40]
[41]
[42]
[43]
[44]
[45]
[46]
[47]
[48]
[49]
[50]
[51]
[52]
[53]
[54]
[55]
[56]
[57]
[58]
[59]
[60]
[]
[null,"1) Saisir uniquement les NOMS A SAISIR Colonne B des JOUEURS. \n2) Activer les macros dans la barre au dessus \"Avertissement de sécurité - Les macros ont été désactivées\".\nCliquer sur \"Options...\" et \"Activer ce contenu\" puis \"OK\" sans tenir compte de l'avertissement.\n3) Puis appuyez sur le \"Bouton de Tri\". Le tableau de droite donne le résultat du tri et chaque onglet \"billard 1 à 6\" reçoit les joueurs.\nCe graphique permet de préparer des tournois de 4 à 24 joueurs, en fonction du nombre d'inscrits."]
[]
[]
[]
[]
[]
[]
[]
[null,"™A.LETELLIER"]

{"sheet":"LIBRE","index":9,"n_rows":2,"n_cols":2,"rows_kept":2,"cut":false,"hidden":false,"merged":[[1,1,10,6]]}
[]
[null,"L'utilisation de ce graphique est réservé aux Directeurs Sportifs du District 13-84.\n\n\n\n"]

{"sheet":"Distances","index":10,"n_rows":16,"n_cols":5,"rows_kept":16,"cut":false,"hidden":true,"merged":[[0,1,0,5],[1,1,1,5],[2,1,2,5],[15,1,15,2],[13,1,13,5],[5,3,5,4],[3,1,3,5],[4,1,4,5],[5,1,11,1],[6,3,6,4]]}
[null,"ANNEXE 1 au RS Carambole 2024-2025"]
[null,"LIGUE MEDITERANNEE BILLARD"]
[null,"Catégories et Distances pour les tournois de Ligue"]
[]
[]
[null,"BANDE","MASTER","Joue N1"]
[null,null,"N 1","80 Pts / 30 r"]
[]
[null,null,null,"2,80 m","3,10 m"]
[null,null,"N 3","60 Pts / 30 r","50 Pts / 30 r"]
[null,null,"R 1","50 Pts / 30 r","40 Pts / 30 r"]
[null,null,"R 2","30 Pts / 30 r"]
[]
[]
[]
[null,"™A.FERHAT ™ C.PEREZ"]

{"sheet":"Heures convocations","index":11,"n_rows":15,"n_cols":7,"rows_kept":15,"cut":false,"hidden":true,"merged":[[0,0,0,6],[3,0,3,4],[5,3,5,5],[7,0,7,6],[9,0,12,0]]}
["LIGUE MEDITERRANEENNE DE BILLARD"]
[]
[]
["TOURNOI HOMOLOGUE",null,null,null,null,{"$f":"'Saisie des joueurs'!D7","v":0},{"$f":"'Saisie des joueurs'!D9","v":"LIBRE"}]
[]
[" "," "," ",{"$f":"'Saisie des joueurs'!D11:D11","v":0},null,null,{"$f":"'Saisie des joueurs'!D5","v":"00:00:00"}]
[]
["HORAIRES DES CONVOCATIONS JOUEURS"]
[]
["8 H 30",{"$f":"'Saisie des joueurs'!L18","v":0},{"$f":"'Saisie des joueurs'!L22","v":0},{"$f":"'Saisie des joueurs'!L26","v":0},{"$f":"'Saisie des joueurs'!L30","v":0},{"$f":"'Saisie des joueurs'!L34","v":0},{"$f":"'Saisie des joueurs'!L38","v":0}]
[null,{"$f":"'Saisie des joueurs'!L19","v":0},{"$f":"'Saisie des joueurs'!L23","v":0},{"$f":"'Saisie des joueurs'!L27","v":0},{"$f":"'Saisie des joueurs'!L31","v":0},{"$f":"'Saisie des joueurs'!L35","v":0},{"$f":"'Saisie des joueurs'!L39","v":0}]
[null,{"$f":"'Saisie des joueurs'!L20","v":0},{"$f":"'Saisie des joueurs'!L24","v":0},{"$f":"'Saisie des joueurs'!L28","v":0},{"$f":"'Saisie des joueurs'!L32","v":0},{"$f":"'Saisie des joueurs'!L36","v":0},{"$f":"'Saisie des joueurs'!L40","v":0}]
[null,{"$f":"'Saisie des joueurs'!L21","v":0},{"$f":"'Saisie des joueurs'!L25","v":0},{"$f":"'Saisie des joueurs'!L29","v":0},{"$f":"'Saisie des joueurs'!L33","v":0},{"$f":"'Saisie des joueurs'!L37","v":0},{"$f":"'Saisie des joueurs'!L41","v":0}]
[]
[null,"™A.FERHAT ™ C.PEREZ"]